Cogmind - Beta 15 @@@ ROGUE MODE // 2025.10.11 @ 14:55:40 Player: weras Result: Destroyed by G-47 Trooper with Particle Gun Performance ------------- Evolutions (0) 0 Regions Visited (3) 600 Robots Destroyed (21) 105 Value Destroyed (527) 527 Prototype IDs (2) 40 Alien Tech Used (0) 0 Bonus (0) 0 TOTAL SCORE: 1272 Bonus ------- None Cogmind --------- Core Integrity 0/250 Matter 290/300 Energy 200/200 System Corruption 0% Temperature Cool (9) Movement Rolling (110) Ox2 Location -10/Subcaves Parts ------- > --- POWER (1) -------- Subdweller Power Source > --- PROPULSION (2) --- Wheel Wheel > --- UTILITY (2) ------ High-capacity Storage Unit Light Armor Plating > --- WEAPON (2) ------- Light Assault Rifle Battle Rifle > --- INVENTORY (20) --- Light Ion Engine Light Ion Engine Wheel Wheel Wheel Heat Sink Medium Matter Pod (100) Sensor Array Signal Interpreter Improved Terrain Scanner Shield Generator EM Shotgun EM Shotgun Light Assault Rifle Subdweller Machine Gun Rocket Launcher Datajack Mining Laser Peak State ------------ > --- POWER ------------ Ion Engine > --- PROPULSION ------- Wheel Compact Wheel > --- UTILITY ---------- High-capacity Storage Unit Medium Armor Plating > --- WEAPON ----------- EM Shotgun EM Shotgun > --- INVENTORY -------- Light Ion Engine Light Ion Engine Wheel Wheel Wheel Sensor Array Signal Interpreter Terrain Scanner Shield Generator EM Shotgun EM Shotgun Light Assault Rifle Light Assault Rifle Rocket Launcher Datajack Mining Laser [Rating: 12] Favorites ----------- Power Ion Engine Engine Ion Engine Propulsion Compact Wheel Wheel Compact Wheel Utility Medium Armor Plating Storage High-capacity Storage Unit Protection Medium Armor Plating Weapon EM Shotgun Energy Gun EM Shotgun Ballistic Gun Assault Rifle Launcher Rocket Launcher Build | -11 -10 -10 -10 ------- Run | Yrd Mat Min Sub Slots Evolved . | . . . . Power . | . . . . Propulsion . | . . . . Utility . | . . . . Weapon . | . . . . Parts Attached 26 | 6 11 2 7 Power 3 | 1 . 1 1 Engine 3 | 1 . 1 1 Core . | . . . . Reactor . | . . . . Propulsion 6 | 2 1 1 2 Treads . | . . . . Leg . | . . . . Wheel 6 | 2 1 1 2 Hover . | . . . . Flight . | . . . . Utility 6 | 1 4 . 1 Device . | . . . . Storage 3 | 1 2 . . Processor . | . . . . Hackware . | . . . . Protection 3 | . 2 . 1 Artifact . | . . . . Weapon 11 | 2 6 . 3 Energy Gun 4 | 1 2 . 1 Energy Cannon . | . . . . Ballistic Gun 6 | 1 3 . 2 Ballistic Cannon . | . . . . Launcher 1 | . 1 . . Special Weapon . | . . . . Impact Weapon . | . . . . Slashing Weapon . | . . . . Piercing Weapon . | . . . . Special Melee Weapon . | . . . . Unidentified Prototypes . | . . . . Parts Lost 7 | . 1 2 4 Power 1 | . . 1 . Propulsion 4 | . 1 1 2 Utility 1 | . . . 1 Weapon 1 | . . . 1 Highest Loss Streak 3 | . 1 2 3 To Critical Strikes . | . . . . Average Backups 14 | 1 10 18 18 Power 1 | . 1 1 2 Propulsion 2 | . . 3 3 Utility 4 | . 3 6 6 Weapon 4 | 1 4 6 5 Tool/Special . | . . . . Unused Backups 20 | . 2 2 16 Power 2 | . . . 2 Propulsion 4 | . . 1 3 Utility 8 | . 1 1 6 Weapon 5 | . 1 . 4 Tool/Special 1 | . . . 1 Average Slot Usage (%) 97 | . 95 99 95 Engine 14 | . 14 14 14 Wheel 27 | . 26 27 25 Storage 14 | . 14 14 14 Protection 12 | . 11 14 12 Energy Gun 15 | . 6 28 9 Ballistic Gun 11 | . 20 . 17 Peak Build Rating 12 | 6 12 12 12 Average Rating 10 | 4 9 11 10 On Entrance 7 | . 6 12 12 Naked Turns . | . . . . Heaviest Build 58 | 14 58 58 56 Greatest Support 32 | 26 26 32 26 Greatest Overweight (x) 3 | 1 3 2 3 Average Overweight (x) 1 | . 1 1 1 Largest Inventory Capacity 20 | 8 20 20 20 Average Capacity 17 | 7 15 20 20 Most Carried 20 | 3 18 19 20 Average Carried 14 | 1 10 18 18 Final Capacity 20 | 8 20 20 20 Final Carried 19 | 2 17 19 18 Class Distribution -------------------- 100% | Mutant Dominant Class ---------------- Mutant | -10/Materials Mutant | -10/Mines Mutant | -10/Subcaves Resources | -11 -10 -10 -10 ----------- Run | Yrd Mat Min Sub Matter Collected 901 | 191 294 324 92 Remotely . | . . . . Salvage Created 710 | . 294 270 146 Parts 50 | . 25 13 12 Haulers Intercepted 1 | . 1 . . Recyclers Shooed . | . . . . Parts Field Recycled . | . . . . Retrieved Matter . | . . . . Parts Self-Destructed 2 | . . . 2 Prevented . | . . . . Kills | -11 -10 -10 -10 ------- Run | Yrd Mat Min Sub Combat Hostiles Destroyed 18 | . 9 6 3 Guns 14 | . 7 5 2 AOE 2 | . 2 . . Classes Destroyed 8 | . 4 3 1 Tunneler 1 | . . 1 . Hauler 1 | . 1 . . Watcher 2 | . 2 . . Swarmer 7 | . 6 1 . Grunt 5 | . 3 2 . Sentry 2 | . . 2 . Subdweller 3 | . . . 3 Assembled 1 | . . 1 . Best Kill Streak 3 | . 3 2 1 Combat Bots Only 3 | . 3 2 1 Max Kills in Single Turn 2 | . 2 1 1 Gunslinging . | . . . . Exploded 2 | . 2 . . Melee . | . . . . Uniques/NPCs Destroyed . | . . . . Combat | -11 -10 -10 -10 -------- Run | Yrd Mat Min Sub Hostile Shots Fired 115 | . 53 27 35 Missed 38 | . 20 6 12 Hits 77 | . 33 21 23 Projectile 77 | . 33 21 23 Critical Strikes 3 | . 1 . 2 Damage Taken 1193 | . 410 310 473 Core 257 | . 75 38 144 Absorbed by Shields . | . . . . Regen/Repaired (Parts) 10 | . 10 . . Core Remaining (%) 100 | 100 . . . Volleys Fired 91 | . 50 15 26 Largest 2 | . 2 2 2 Hottest 90 | . 63 90 90 Shots Fired 170 | . 91 30 49 Gun 166 | . 87 30 49 Cannon . | . . . . Launcher 4 | . 4 . . Special . | . . . . Kinetic 97 | . 73 . 24 Thermal . | . . . . Explosive 4 | . 4 . . Electromagnetic 69 | . 14 30 25 Robot Hit Streak 31 | . 12 18 31 Robot Miss Streak 10 | . 10 4 2 Penetration Max . | . . . . Secondary Targets . | . . . . Shots Hit Robots 116 | . 53 25 38 Core Hits 44 | . 20 15 9 Critical Kills . | . . . . Critical Parts Destroyed 1 | . 1 . . Critical Strikes 1 | . 1 . . Destroy 1 | . 1 . . Melee Attacks . | . . . . Impact . | . . . . Slashing . | . . . . Piercing . | . . . . Sneak Attacks . | . . . . Combat Hostiles . | . . . . Follow-up Attacks . | . . . . Damage Inflicted 1499 | . 810 353 336 Guns 1373 | . 684 353 336 Cannons . | . . . . Explosions 126 | . 126 . . Melee . | . . . . Ramming . | . . . . Kinetic 692 | . 551 . 141 Thermal . | . . . . Explosive 126 | . 126 . . Electromagnetic 681 | . 133 353 195 Impact . | . . . . Slashing . | . . . . Piercing . | . . . . Highest Corruption . | . . . . Average Corruption . | . . . . Corruption Purged . | . . . . Corruption Blocked . | . . . . Overload Shots . | . . . . Overflow Damage . | . . . . Projectiles . | . . . . Explosions . | . . . . Melee . | . . . . Knockbacks . | . . . . Impact . | . . . . Kinetic . | . . . . Secondary . | . . . . Self-Inflicted Damage 94 | . 46 48 . Shots 3 | . 2 1 . Rammed . | . . . . Targets Rammed . | . . . . Kicked . | . . . . Crushed . | . . . . Highest Temperature 194 | . 177 194 . Average Temperature 63 | . 44 83 . Received Heat Transfer 231 | . 171 51 9 Siege Activations . | . . . . Martial Activations . | . . . . Shielding Activations . | . . . . Robots Disrupted . | . . . . Combat Hostiles . | . . . . Robots Corrupted 2 | . . 1 1 Combat Hostiles 2 | . . 1 1 Parts Fried 5 | . 1 1 3 Impact Corruptions . | . . . . Robots Melted . | . . . . Combat Hostiles . | . . . . Parts Melted . | . . . . Heat Transferred . | . . . . Parts Sabotaged . | . . . . Parts Stolen . | . . . . Parts Stripped . | . . . . Power Chain Reactions 2 | . . 2 . Alert | -11 -10 -10 -10 ------- Run | Yrd Mat Min Sub Maximum Alert Level . | . . . . Low Security (%) 100 | 100 100 100 . Level 1 . | . . . . Level 2 . | . . . . Level 3 . | . . . . Level 4 . | . . . . Level 5 . | . . . . High Security . | . . . . Max Security . | . . . . Peak Influence 70 | . 70 65 . Initial . | . . . . Average 16 | . 26 6 . Influence Increases 546 | . 392 154 . Destroy 0b10 Robot/C 280 | . 180 100 . Destroy 0b10 Robot/NC 20 | . 15 5 . Destroy Leader 56 | . 46 10 . Successful Hack 29 | . 29 . . Disable Machine 15 | . 15 . . Destroy Structure 41 | . 32 9 . Lose Combat Pursuer 105 | . 75 30 . Influence Decreases 546 | . 392 95 59 Entered New Map 31 | . . . 31 Time Decay 487 | . 382 85 20 Lost Part 28 | . 10 10 8 Squads Dispatched 1 | . 1 . . Investigation . | . . . . Extermination . | . . . . Reinforcement 1 | . 1 . . Assault . | . . . . Garrison . | . . . . Intercept . | . . . . Searches Triggered . | . . . . Construction Impeded . | . . . . Haulers Reinforced . | . . . . Active Scanning Responses . | . . . . Cargo Convoy Interrupts . | . . . . Stealth | -11 -10 -10 -10 --------- Run | Yrd Mat Min Sub Distress Signals 3 | . 1 2 . Communications Jammed . | . . . . Distress Signals . | . . . . Times Spotted 40 | . 22 14 4 Peak Tracking Total 4 | . 4 3 2 Tactical Retreats 6 | . 3 3 . Traps | -11 -10 -10 -10 ------- Run | Yrd Mat Min Sub Traps Triggered 1 | . 1 . . Indirectly . | . . . . Trap Hack Attempts . | . . . . Triggered . | . . . . Disarmed . | . . . . Reprogrammed . | . . . . Reused . | . . . . Traps Extracted . | . . . . Installed . | . . . . Triggered . | . . . . Machines | -11 -10 -10 -10 ---------- Run | Yrd Mat Min Sub Machines Disabled 2 | . 1 1 . Max in Single Turn 1 | . 1 1 . Machines Repaired . | . . . . Machines Dismantled . | . . . . Machines Sabotaged . | . . . . Overloaded Fab Kills . | . . . . Hacking | -11 -10 -10 -10 --------- Run | Yrd Mat Min Sub Machines Accessed 9 | . 9 . . Terminals 7 | . 7 . . Fabricators . | . . . . Repair Stations 1 | . 1 . . Recycling Units 1 | . 1 . . Scanalyzers . | . . . . Garrison Access . | . . . . Total Hacks 34 | . 34 . . Successful 21 | . 21 . . Failed 12 | . 12 . . Catastrophic 1 | . 1 . . Database Lockouts 1 | . 1 . . Manual 23 | . 23 . . Terminals 30 | . 30 . . Fabricators . | . . . . Repair Stations 2 | . 2 . . Recycling Units 2 | . 2 . . Scanalyzers . | . . . . Garrison Access . | . . . . Terminal Hacks 6 | . 6 . . Robot Analysis 1 | . 1 . . Prototype ID Bank 1 | . 1 . . Locate Traps 1 | . 1 . . Hauler Manifests 1 | . 1 . . Zone Layout 2 | . 2 . . Fabricator Hacks . | . . . . Repair Station Hacks 2 | . 2 . . Scan Component 1 | . 1 . . Repair 1 | . 1 . . Recycling Unit Hacks . | . . . . Scanalyzer . | . . . . Garrison Access Hacks . | . . . . Unauthorized Hacks 13 | . 13 . . Terminals 12 | . 12 . . Botnet 6 | . 6 . . Skim 6 | . 6 . . Fabricators . | . . . . Repair Stations . | . . . . Recycling Units 1 | . 1 . . Mask 1 | . 1 . . Scanalyzers . | . . . . Garrison Access . | . . . . Data Cores Recovered . | . . . . Used . | . . . . Hacking Detections 8 | . 8 . . Full Trace Events 2 | . 2 . . Feedback Events . | . . . . Feedback Blocked . | . . . . Robot Schematics Acquired . | . . . . Robots Built . | . . . . Authchips . | . . . . Time . | . . . . Total Robot Build Rating . | . . . . Part Schematics Acquired . | . . . . Parts Built . | . . . . Authchips . | . . . . Time . | . . . . Total Part Build Rating . | . . . . Parts Repaired 1 | . 1 . . Time 26 | . 26 . . Parts Recycled . | . . . . Recycled Matter . | . . . . Retrieved Matter . | . . . . Retrieved Components . | . . . . Parts Scanalyzed . | . . . . Part Schematics Acquired . | . . . . Parts Damaged . | . . . . Bothacking | -11 -10 -10 -10 ------------ Run | Yrd Mat Min Sub Used RIF Installer . | . . . . Robots Hacked . | . . . . Non-combat . | . . . . Combat . | . . . . Robot Hacks Applied . | . . . . Relay Couplers Released . | . . . . Fabnet Peak Effective % . | . . . . Robots Rewired . | . . . . Allies Hacked . | . . . . Hacks Repelled . | . . . . Allies | -11 -10 -10 -10 -------- Run | Yrd Mat Min Sub Total Allies . | . . . . Largest Group . | . . . . Highest-Rated Group . | . . . . Highest-Rated Ally . | . . . . Total Orders . | . . . . Ally Attacks . | . . . . Total Damage . | . . . . Kills . | . . . . Allies Corrupted . | . . . . Allies Melted . | . . . . Intel | -11 -10 -10 -10 ------- Run | Yrd Mat Min Sub Active Infowar (turns) . | . . . . Robot Analysis Total 1 | . 1 . . Derelict Logs Recovered 2 | . . 1 1 Drone Launches . | . . . . Drone Recoveries . | . . . . Exploration | -11 -10 -10 -10 ------------- Run | Yrd Mat Min Sub Turns Passed 2490 | 54 1179 1011 246 Spaces Moved 1770 | 50 817 766 137 Core 4 | 4 . . . Treads . | . . . . Legs . | . . . . Wheels 1766 | 46 817 766 137 Hover . | . . . . Flight . | . . . . Fastest Speed 50 | 50 90 115 105 Average Speed 111 | 86 106 119 112 Slowest Speed 145 | 95 145 120 145 Overloaded Moves . | . . . . Propulsion Burnouts . | . . . . Robots Hopped . | . . . . Potential Cave-ins 1 | . 1 . . Cave-ins Triggered . | . . . . Exploration Rate (%) 50 | 3 89 100 9 Regions Visited 3 Branch Regions 2 Pre-discovered Areas 2 | . 1 1 . Known Exits Taken 1 | . . 1 . Unknown Exits Taken 2 | 1 1 . . Scrap Searched 2 | . . 2 . Spaces Dug . | . . . . Terrain Destroyed 46 | . 39 7 . Melee . | . . . . Projectile . | . . . . AOE 46 | . 39 7 . Terrain Rammed . | . . . . Walls Destroyed . | . . . . Machines Disabled . | . . . . Actions | -11 -10 -10 -10 --------- Run | Yrd Mat Min Sub Total 2116 | 58 1041 832 185 Wait 172 | . 122 41 9 Move 1767 | 49 816 765 137 Hop . | . . . . Pick Up 38 | 3 25 6 4 Fast Attach 10 | 5 5 . . Attach 12 | 1 5 2 4 Detach 1 | . 1 . . Swap 10 | . 6 1 3 Drop 15 | . 11 2 2 Fire 91 | . 50 15 26 Melee . | . . . . Ram . | . . . . Kick . | . . . . Crush . | . . . . Escape Stasis . | . . . . Rewire . | . . . . Trap . | . . . . Miscellaneous . | . . . . Route ------- -11/Scrapyard -10/Materials (discovered 4 exits: [*Mat x2] / [*Min] / *Sub) -10/Mines (discovered 3 exits: [*Mat x2] / *Sub) -10/Subcaves History --------- Turn | Location | Event 18 | -11/Scrapyard | Discovered new exit (range 16) 55 | -11/Scrapyard | Entered Materials 155 | -10/Materials | Discovered new exit (range 16) 301 | -10/Materials | Repaired Com. Wheel 322 | -10/Materials | Build established: Mutant 399 | -10/Materials | Central database locked down 746 | -10/Materials | Learned Storage stockpile data 795 | -10/Materials | Learned Storage emergency access door positions 895 | -10/Materials | Identified exit to Subcaves 904 | -10/Materials | Discovered new exit (range 8) 943 | -10/Materials | Learned 2 Materials zone layouts 946 | -10/Materials | Discovered new exit (range 10) 1234 | -10/Materials | Entered Mines 1303 | -10/Mines | Assembled infested the area 1308 | -10/Mines | Assisted by a Guerilla fighting off Assembled 1484 | -10/Mines | Learned location of Recycling (-9) 1523 | -10/Mines | Discovered new exit (range 6) 1800 | -10/Mines | Discovered new exit (range 3) 2094 | -10/Mines | Received a Rocket Launcher from a helpful Derelict 2235 | -10/Mines | Discovered exit to Subcaves (range 6) 2245 | -10/Mines | Entered Subcaves 2246 | -10/Subcaves | Approached by a straggling Scientist 2284 | -10/Subcaves | Core integrity fell below 50% 2325 | -10/Subcaves | Core integrity fell below 20% 2343 | -10/Subcaves | Lost 3 parts (1n1u1w) 2429 | -10/Subcaves | A swath of the cavern ceiling suddenly collapsed 2491 | -10/Subcaves | Destroyed by G-47 Trooper with Particle Gun Last Messages --------------- 02322_ MO-CXC(R) misfires. 02326_ MO-CXC(R) destroyed. 02329_ Acquired 31 matter. 02332_ Subatomizers dissect the Wheel. 02332_ Acquired Battle Rifle. 02334_ Acquired Wheel. 02341_ Dropped EM Shotgun. 02342_ Subatomizers dissect the Corrupted Sub. Machine Gun. 02343_ Acquired 20 matter. 02384_ Com. Wheel destroyed. 02388_ 0K-RY8(R) destroyed. 02403_ Acquired 37 matter. 02410_ Dropped Lgt. Ion Engine. 02412_ Acquired Sub. Machine Gun. 02413_ Acquired 4 matter. A swath of the cavern ceiling suddenly collapses. 02477_ Acquired derelict log, extracted data. Data stored: Storage entrances (x1). Map ----- +----------------------------------------------------+ | ????????????????????? ??????????????????????? | | ????????????????????? ??????????????????????? | | ?????????????????????# ??????????????????????? | | ????????????????"??### ??????????????????????? | | ?????????????????""" ?????#????????????????? | | ?????????????????? """ ???? ##???????????????? | | ??????????????????? """"??"" #???????????????? | | ????????????????????# " ##" " #???????????????? | | ?????????????????????# # ""#????????????????? | | ??????????????????????# " """#????????????????? | | ??????????????????????# ##""#????????????????? | | ??????????????????????# #"""#????????????????? | | ??????????????????????#" ## "#????????????????? | | ?????????????????????##"=#&=%#?????#####???###? | | ????????????????????##"![%[&[#?????# ##### ## | | ????????????????????#""* %& #?????## ## # | | ????????????????????#" ## #####?## # | | ???????????????##???# ### ## ### # | | ???????????????# ######??### | | ??????????????### # #??????# | | ??????????????# < < ##????## # | | ??????????????# ##????################ | | ??????????????# ##????#####?????????# | | ??????????????# ###### #?????????# | | ???????????????# ####???##?# | | ???????????????# g@ # ### # #### #### | | ???????????????# #######?#### #?## | | ???????????????#### #???????????# ##??# | | ?????????????????# ????????????## ## ###???? | | ?????????????????##??????????????##### #######? | | ????????????????????????????????????##"## ## | | ???????????????????????????????????##""##" | | ???????????????????????????????? #"###"" | | ???????????????????????????????? #""""#"# | | ????????????????????????????????? ###"#"#""#### | | ????????????????????????????????###""#"#"####?? | | ??????????????????????????????###"""##""##????? | | ??????????????????????????????#"#""""""##?????? | | ??????????????????????????????##"""#####??????? | | ???????????????????????????????###"""#????????? | | ?????????????????????????????????#####????????? | | ??????????????????????????????????????????????? | | ??????????????????????????????????????????????? | | ??????????????????????????????????????????????? | | ??????????????????????????????????????????????? | | ??????????????????????????????????????????????? | | ??????????????????????????????????????????????? | | ??????????????????????????????????????????????? | | ??????????????????????????????????????????????? | | ??????????????????????????????????????????????? | +----------------------------------------------------+ Best States ------------- Heat Dissipation 25 Energy Generation 15 Energy Capacity 250 Matter Stores 300 Matter Capacity 300 Sight Range 16 Terrain Scan Density 10 Armor Coverage 225 Evasion (%) 44 Item Schematics ----------------- None Robot Schematics ------------------ None Fabricated ------------ Nothing Repaired ---------- Com. Wheel | 66% | -10/Materials Alien Tech Used ----------------- None Achievements -------------- None Challenges ------------ None Game ------ Seed InertialPointSheargun Manual? 0 Play Time 00:27:31 Cumulative 17.3 hours Start 2025.10.11 @ 13:47:33 End 2025.10.11 @ 14:55:40 Sessions 2 Manual Loads 0 Difficulty Rogue Special Mode None Game No. 21 Rogue 21 Adventurer 0 Explorer 0 Win Type - Total 0 Types 0/0/0/0/0/0/0/0/0/0 Lore% 10 Gallery% 14 Achievement% 18 Wizard Run 0 Options --------- Layout 1 ASCII 0 Keyboard 0 Movement Numpad Keybinds 0 Fullscreen 1 Font 24/Crisp Map View 50x35 Zoom Use 0% Tactical HUD 1 Map Filters NONE Filters NONE Steam 1 RUN: b199eb61-a587-41bd-bd5d-d4720913d919